[Event "Bangladesh SAIF Powertec-ch 2024"]
[Site "Dhaka"]
[Date "2024.07.04"]
[Round "11.7"]
[White "Ahmed, Sheikh Nasir"]
[Black "Md Minhaz Uddin"]
[Result "1/2-1/2"]
[ECO "A15"]
[WhiteElo "2112"]
[BlackElo "2228"]
[Annotator "TA"]
[PlyCount "86"]
[EventDate "2024.06.23"]
[EventType "tourn"]
[EventCountry "BAN"]
[SourceTitle "playchess.com"]
[Source "ChessBase"]
[SourceQuality "1"]
[TimeControl "40/5400+30:1800+30"]

{[%evp 9,86,20,13,7,11,12,41,39,36,32,72,56,67,45,51,38,66,51,66,68,73,76,75,72,63,82,89,93,89,100,105,112,93,103,80,59,68,70,82,79,129,102,110,90,181,58,52,51,57,45,232,247,260,254,252,0,0,0,0,0,0,0,9,0,0,0,0,0,7,0,0,0,0,0,15,8,14,8,31]} 1. Nf3 {[%emt 0:00:13]} Nf6 {[%emt 0:07:00]} 2. c4 {[%emt 0:00:17]} b6 {[%emt 0:04:13]} 3. g3 {[%emt 0:00:11]} Bb7 {[%emt 0:00:04]} 4. Bg2 {[%emt 0:00:09]} g6 {[%emt 0:00:05]} 5. O-O {[%emt 0:01:40]} Bg7 {[%emt 0:00:03]} 6. Nc3 {[%emt 0:00:22]} O-O {[%emt 0:01:24]} 7. Re1 {[%emt 0:02:01]} d6 {[%emt 0:05:09]} 8. e4 {[%emt 0:00:55] White is slightly better.} e5 {[%emt 0:00:31]} 9. d4 {[%emt 0:00:08][%cal Bd2d4,Bd4d5][%mdl 32]} Nc6 {[%emt 0:11:27]} 10. d5 {[%emt 0:04:55]} Ne7 {[%emt 0:01:44]} 11. Rb1 {[%emt 0:03:49]} a5 {[%emt 0:01:17]} 12. a3 {[%emt 0:00:25]} Ba6 {[%emt 0:05:22]} 13. b4 {[%emt 0:12:15]} Bxc4 {[%emt 0:07:09]} 14. b5 {[%emt 0:01:14]} Nd7 {[%emt 0:06:58]} 15. Na4 {[%emt 0:07:43]} f5 {[%emt 0:03:22]} 16. Ng5 {[%emt 0:04:30]} fxe4 {[%emt 0:01:14]} 17. Ne6 {[%emt 0:00:16]} Qe8 {[%emt 0:08:29][%cal Oe8f7]} 18. Rxe4 {[%emt 0:16:09]} Bxd5 {[%emt 0:05:56]} 19. Nxc7 {[%emt 0:00:20] White is much more active.} Qf7 {[%emt 0:00:48]} 20. Nxd5 {[%emt 0:00:07]} Nxd5 {[%emt 0:00:37]} 21. Re2 $36 {[%emt 0:01:23][%mdl 2048] White is on the roll.} N7f6 {[%emt 0:01:21]} 22. Rbb2 {[%emt 0:18:20][%mdl 1024] White has strong compensation.} e4 {[%emt 0:03:08]} 23. Rbd2 {[%emt 0:00:32]} Rfe8 {[%emt 0:06:51]} 24. Bb2 {[%emt 0:01:53]} Bf8 {[%emt 0:01:53]} (24... Rab8 $142) 25. Rd4 {[%emt 0:08:00][%cal Rd4e4] [#] Rdxe4 would now be deadly.} Ra7 {[%emt 0:06:54]} 26. Bxe4 {[%emt 0:00:46]} Nxe4 {[%emt 0:04:24]} (26... Rxe4 $16 {was called for.} 27. Rexe4 (27. Rdxe4 Nxe4 28. Rxe4 Rb7 $18) 27... Nxe4 28. Rxe4 Qf5) 27. Rxd5 {[%emt 0:00:16]} ({Better is} 27. Rexe4 $18 Rxe4 28. Rxe4) 27... Rae7 $14 {[%emt 0:01:37][%cal Oe4f2] Threatens to win with ...Nxf2!} 28. Kg2 {[%emt 0:06:39]} (28. Nxb6 Nxf2 29. Rxe7 (29. Rxf2 $2 Re1+ 30. Kg2 Rxd1 $19) 29... Rxe7 $17) 28... Nc5 {[%emt 0:03:26]} 29. Rxe7 {[%emt 0:01:34]} Rxe7 {[%emt 0:00:48] [#]} (29... Qxe7 $14 30. Nc3 (30. Nxb6 Rb8 $11) 30... Qb7) 30. Nxb6 $18 {[%emt 0:02:16][%cal Od1d4] And now Qd4! would win.} Rb7 {[%emt 0:01:22]} 31. Nc4 {[%emt 0:02:02]} (31. Qd4 Bg7 32. Qxg7+ Qxg7 33. Bxg7 Rxb6 $18) 31... Rxb5 {[%emt 0:00:17]} 32. Qd4 $2 {[%emt 0:00:24]} ({White must play} 32. Nxd6 $18 Bxd6 (32... Rxb2 33. Nxf7 Rb3 34. Nh6+ Bxh6 35. Rxc5 Bf8 36. Rc7) 33. Rxd6 (33. Qd4 $2 Rxb2 34. Rxd6 Qxf2+ 35. Qxf2 Rxf2+ 36. Kh3 Ra2 $19) 33... Qb7+ (33... Rxb2 $2 34. Rd8+ Kg7 35. Qd4+ Qf6 36. Rg8+ Kxg8 37. Qxf6 $18) 34. Qd5+ Qxd5+ 35. Rxd5 Rxb2 36. Rxc5) 32... Rxb2 $1 $11 {[%emt 0:00:14] The position is equal.} 33. Nxb2 {[%emt 0:01:26]} Bg7 {[%emt 0:00:01] Prevents Nc4} 34. Qd1 {[%emt 0:01:11]} Bxb2 {[%emt 0:00:06]} 35. Rxd6 {[%emt 0:00:11]} Bg7 {[%emt 0:00:59]} (35... Bxa3 $2 {loses.} 36. Rd8+ Kg7 37. Qa1+ Kh6 (37... Qf6 $2 38. Rg8+ Kxg8 39. Qxf6 $18) 38. Qxa3 Qb7+ 39. Qf3 Qxf3+ 40. Kxf3 $18) 36. Qd5 {[%emt 0:02:35]} (36. Qc2 {seems wilder.} Qb7+ 37. Kg1 Qb5 38. h4) 36... Qxd5+ {[%emt 0:00:26]} 37. Rxd5 {[%emt 0:00:01]} Bf8 {[%emt 0:00:26]} 38. f4 {[%emt 0:00:45]} Be7 {[%emt 0:00:26]} 39. Kf3 {[%emt 0:00:40]} Kf7 {[%emt 0:00:02]} 40. Ke3 {[%emt 0:01:09]} Ke6 {[%emt 0:02:22]} 41. Kd4 {[%emt 0:03:48]} Nb7 {[%emt 0:16:17]} 42. Rb5 {[%emt 0:04:47]} Nd8 {[%emt 0:00:06]} 43. Ke4 {[%emt 0:05:02]} (43. Rxa5 $2 {too greedy.} Nc6+ 44. Ke3 Nxa5 $19) 43... Nc6 {[%emt 0:03:28] Against Re5+.   Weighted Error Value: White=0.18 (very precise) /Black=0.14 (very precise) .  Loses game:     	---       	Black=1      Missed win:     	White=1     	---        Mistake:       	White=1     	Black=2      Inaccurate:     	---       	Black=3      OK:         	White=12    	Black=13     Best:        	White=6     	Black=7      Strong:       	---       	Black=1} 1/2-1/2